[Event "Fredericia WIM 2019"]
[Site "Fredericia"]
[Date "2019.05.30"]
[Round "3.9"]
[White "Kubicka, Anna"]
[Black "Keetman, Maaike"]
[Result "1-0"]
[ECO "E32"]
[WhiteElo "2142"]
[BlackElo "2146"]
[Annotator "ChessBase"]
[PlyCount "165"]
[EventDate "2019.05.29"]
[EventType "tourn"]
[EventCountry "DEN"]
[SourceTitle "playchess.com"]
[Source "ChessBase"]
[SourceQuality "1"]
[TimeControl "40/5400+30:1800+30"]

1. d4 {[%emt 0:00:00]} Nf6 {[%emt 0:00:00]} 2. c4 {[%emt 0:00:02]} e6 {[%emt 0:00:00]} 3. Nc3 {[%emt 0:00:41]} Bb4 {[%emt 0:00:00]} 4. Qc2 {[%emt 0:00:06]} b6 {[%emt 0:00:11]} 5. a3 {[%emt 0:01:04]} Bxc3+ {[%emt 0:00:15]} 6. Qxc3 {[%emt 0:00:05]} Bb7 {[%emt 0:00:21]} 7. Bg5 {[%emt 0:01:29]} h6 {[%emt 0:00:54]} 8. Bh4 {[%emt 0:00:32]} g5 {[%emt 0:01:19]} 9. Bg3 {[%emt 0:00:07]} Ne4 {[%emt 0:00:15]} 10. Qc2 {[%emt 0:01:37]} d6 {[%emt 0:02:20]} 11. e3 {[%emt 0:01:27]} Nd7 {[%emt 0:04:16]} 12. f3 {[%emt 0:03:03]} Nxg3 {[%emt 0:00:37]} 13. hxg3 {[%emt 0:00:02]} f5 {[%emt 0:04:54]} 14. g4 {[%emt 0:14:49]} Qf6 {[%emt 0:03:28]} 15. gxf5 {[%emt 0:00:58]} exf5 {[%emt 0:00:38]} 16. Bd3 {[%emt 0:01:19]} Rf8 {[%emt 0:02:46]} 17. Ne2 {[%emt 0:02:53]} Qe6 {[%emt 0:17:58]} 18. O-O-O {[%emt 0:05:28]} O-O-O {[%emt 0:04:44]} 19. Kb1 {[%emt 0:02:18]} g4 {[%emt 0:24:31]} 20. Ng3 {[%emt 0:10:21]} gxf3 {[%emt 0:03:45]} 21. Nxf5 {[%emt 0:02:34]} fxg2 {[%emt 0:02:42]} 22. Rxh6 {[%emt 0:00:25]} Rf6 {[%emt 0:01:41]} 23. d5 {[%emt 0:01:00]} Qe5 {[%emt 0:02:06]} 24. Rxf6 {[%emt 0:02:49]} Qxf6 {[%emt 0:00:26]} 25. Qxg2 {[%emt 0:00:55]} Ne5 {[%emt 0:00:55]} 26. Nd4 {[%emt 0:06:57]} Qh6 {[%emt 0:04:32]} 27. Qe4 {[%emt 0:07:19]} Rg8 {[%emt 0:07:21]} 28. Rh1 {[%emt 0:03:41]} Qf6 {[%emt 0:02:30]} 29. Qh7 {[%emt 0:04:21]} Re8 {[%emt 0:02:46]} 30. Nb5 {[%emt 0:11:14]} Qf7 {[%emt 0:02:16]} 31. Qxf7 {[%emt 0:01:50]} Nxf7 {[%emt 0:00:04]} 32. Rh7 {[%emt 0:02:12]} a6 {[%emt 0:03:49]} 33. Nxc7 {[%emt 0:02:47]} Rxe3 {[%emt 0:00:54]} 34. Rxf7 {[%emt 0:02:20]} Rxd3 {[%emt 0:00:05]} 35. Ne8 {[%emt 0:00:24]} Kb8 {[%emt 0:01:26]} 36. Nxd6 {[%emt 0:00:35]} Ba8 {[%emt 0:00:13]} 37. Rf8+ {[%emt 0:03:32]} Kc7 {[%emt 0:00:49]} 38. Rxa8 {[%emt 0:03:51]} Kxd6 {[%emt 0:00:07]} 39. Rxa6 {[%emt 0:00:49]} Kc5 {[%emt 0:00:05]} 40. Ra4 {[%emt 0:00:50]} b5 {[%emt 0:00:46]} 41. cxb5 {[%emt 0:30:40]} Kxb5 {[%emt 0:30:26]} 42. Rb4+ {[%emt 0:00:51]} Ka5 {[%emt 0:00:25]} 43. Kc2 {[%emt 0:00:42]} Rxd5 {[%emt 0:00:44]} 44. Rc4 {[%emt 0:00:00]} Kb5 {[%emt 0:00:00]} 45. Rc3 {[%emt 0:00:00]} Rd4 {[%emt 0:00:00]} 46. Kb3 {[%emt 0:00:00]} Rh4 {[%emt 0:00:00]} 47. Rg3 {[%emt 0:00:00]} Rf4 {[%emt 0:00:00]} 48. a4+ {[%emt 0:00:00]} Ka5 {[%emt 0:00:00]} 49. Rg5+ {[%emt 0:00:00]} Ka6 {[%emt 0:00:00]} 50. Rc5 {[%emt 0:00:00]} Rf2 {[%emt 0:00:00]} 51. Ka3 {[%emt 0:00:00]} Rf1 {[%emt 0:00:00]} 52. Kb4 {[%emt 0:00:00]} Rf4+ {[%emt 0:00:00]} 53. Rc4 {[%emt 0:00:00]} Rf5 {[%emt 0:00:00]} 54. Rc6+ {[%emt 0:00:00]} Kb7 {[%emt 0:00:00]} 55. Rc5 {[%emt 0:00:00]} Rf2 {[%emt 0:00:00]} 56. b3 {[%emt 0:00:00]} Rf3 {[%emt 0:00:00]} 57. a5 {[%emt 0:00:00]} Ka6 {[%emt 0:00:00]} 58. Rc6+ {[%emt 0:00:00]} Kb7 {[%emt 0:00:00]} 59. Rb6+ {[%emt 0:00:00]} Kc7 {[%emt 0:00:00]} 60. Ka4 {[%emt 0:00:00]} Rf4+ {[%emt 0:00:00]} 61. b4 {[%emt 0:00:00]} Rf5 {[%emt 0:00:00]} 62. Rb5 {[%emt 0:00:00]} Rf1 {[%emt 0:00:00]} 63. Rc5+ {[%emt 0:00:00]} Kb7 {[%emt 0:00:00]} 64. Kb5 {[%emt 0:00:00]} Rb1 {[%emt 0:00:00]} 65. a6+ {[%emt 0:00:00]} Ka7 {[%emt 0:00:00]} 66. Rc7+ {[%emt 0:00:00]} Kb8 {[%emt 0:00:00]} 67. Rh7 {[%emt 0:00:00]} Rb2 {[%emt 0:00:00]} 68. Ka5 {[%emt 0:00:00]} Rb1 {[%emt 0:00:00]} 69. b5 {[%emt 0:00:00]} Rg1 {[%emt 0:00:00]} 70. Rd7 {[%emt 0:00:00]} Rg6 {[%emt 0:00:00]} 71. Rb7+ {[%emt 0:00:00]} Ka8 {[%emt 0:00:00]} 72. Rb6 {[%emt 0:00:00]} Rg1 {[%emt 0:00:00]} 73. Rc6 {[%emt 0:00:00]} Rg5 {[%emt 0:00:00]} 74. Kb6 {[%emt 0:00:00]} Rg8 {[%emt 0:00:00]} 75. Rc5 {[%emt 0:00:00]} Rb8+ {[%emt 0:00:00]} 76. Ka5 {[%emt 0:00:00]} Ka7 {[%emt 0:00:00]} 77. b6+ {[%emt 0:00:00]} Ka8 {[%emt 0:00:00]} 78. b7+ {[%emt 0:00:00]} Ka7 {[%emt 0:00:00]} 79. Rc8 {[%emt 0:00:00]} Rxc8 {[%emt 0:00:00]} 80. bxc8=B {[%emt 0:00:00]} Kb8 {[%emt 0:00:00]} 81. Kb6 {[%emt 0:00:00]} Ka8 {[%emt 0:00:00]} 82. Bb7+ {[%emt 0:00:00]} Kb8 {[%emt 0:00:00]} 83. a7# {[%emt 0:00:00]} 1-0

[Event "Fredericia WIM 2019"]
[Site "Fredericia"]
[Date "2019.05.30"]
[Round "3.10"]
[White "Nilssen, Ellen Fredericia"]
[Black "Stolberg-Rohr, Thomine"]
[Result "1-0"]
[ECO "E46"]
[WhiteElo "2129"]
[BlackElo "2025"]
[Annotator "ChessBase"]
[PlyCount "123"]
[EventDate "2019.05.29"]
[EventType "tourn"]
[EventCountry "DEN"]
[SourceTitle "playchess.com"]
[Source "ChessBase"]
[SourceQuality "1"]
[TimeControl "40/5400+30:1800+30"]

1. d4 Nf6 2. c4 e6 3. Nc3 Bb4 4. e3 O-O 5. Nge2 d5 6. a3 Be7 7. Ng3 Nbd7 8. cxd5 exd5 9. b4 Re8 10. Bd3 a5 11. Rb1 axb4 12. axb4 Nb6 13. O-O Be6 14. Qb3 Qd7 15. Nge2 Bf5 16. Bxf5 Qxf5 17. Ng3 Qd7 18. Rd1 Bd6 19. Nf1 h5 20. Bd2 h4 21. h3 Qf5 22. Nb5 Ne4 23. Be1 Nc4 24. f3 Ng5 25. Nxd6 cxd6 26. Qd3 Qf6 27. Rdc1 Ra2 28. Ra1 Nxf3+ 29. gxf3 Qg5+ 30. Bg3 Rb2 31. f4 Qh5 32. Bf2 Qf3 33. Rc2 Qxh3 34. Rxb2 Qg4+ 35. Kh2 Nxb2 36. Qc2 Nc4 37. Qd1 Qf5 38. Qf3 Qc2 39. Kh1 Qc3 40. Re1 Qxb4 41. f5 Re4 42. f6 g6 43. Nh2 Nd2 44. Qh3 Qb5 45. Bxh4 Re6 46. Ng4 Qd3 47. Nf2 Qf5 48. Qxf5 gxf5 49. Rg1+ Kf8 50. Bg5 Nf3 51. Bh6+ Ke8 52. Rg8+ Kd7 53. Bg7 Rxe3 54. Rf8 Nxd4 55. Rxf7+ Kc6 56. Rf8 Ne6 57. Re8 Re1+ 58. Kh2 Nxg7 59. Rxe1 Nh5 60. Re8 Ng7 61. Re1 {[%emt 2:25:33]} Nh5 {[%emt 2:29:48]} 62. f7 {[%emt 0:00:08]} 1-0

[Event "Fredericia WIM 2019"]
[Site "Fredericia"]
[Date "2019.05.31"]
[Round "4.10"]
[White "Keetman, Maaike"]
[Black "Nilssen, Ellen Fredericia"]
[Result "0-1"]
[ECO "C09"]
[WhiteElo "2146"]
[BlackElo "2025"]
[Annotator "RC"]
[PlyCount "118"]
[EventDate "2019.05.29"]
[EventType "tourn"]
[EventCountry "DEN"]
[SourceTitle "playchess.com"]
[Source "ChessBase"]
[SourceQuality "1"]
[TimeControl "40/5400+30:1800+30"]

1. e4 {[%emt 0:00:00]} e6 {[%emt 0:00:00]} 2. d4 {[%emt 0:00:00]} d5 {[%emt 0:00:00]} 3. Nd2 {[%emt 0:00:00]} c5 {[%emt 0:00:00]} 4. Ngf3 {[%emt 0:00:00]} Nc6 {[%emt 0:02:12]} 5. exd5 {[%emt 0:00:05]} exd5 {[%emt 0:00:26]} 6. Bb5 {[%emt 0:00:23]} cxd4 {[%emt 0:00:17]} 7. O-O {[%emt 0:04:44]} Bd6 {[%emt 0:00:09]} 8. Re1+ {[%emt 0:01:49]} Nge7 {[%emt 0:01:00]} 9. Nxd4 {[%emt 0:03:59]} O-O {[%emt 0:02:57]} 10. N2f3 {[%emt 0:08:42]} Bg4 {[%emt 0:04:02]} 11. Be2 {[%emt 0:01:14]} Re8 {[%emt 0:08:07]} 12. Bg5 {[%emt 0:07:54]} h6 {[%emt 0:05:53]} 13. Bh4 {[%emt 0:04:02]} Qb6 {[%emt 0:00:42]} 14. Nxc6 {[%emt 0:11:32]} bxc6 {[%emt 0:03:15]} 15. Qd4 {[%emt 0:01:01]} Bxf3 {[%emt 0:12:30]} 16. Qxb6 {[%emt 0:00:08]} axb6 {[%emt 0:00:10]} 17. Bxf3 {[%emt 0:00:09]} Nf5 {[%emt 0:01:17]} 18. Rxe8+ {[%emt 0:00:49]} Rxe8 {[%emt 0:00:06]} 19. Bg3 {[%emt 0:00:04]} Bxg3 {[%emt 0:02:53]} 20. hxg3 {[%emt 0:00:30]} Nd4 {[%emt 0:00:30]} 21. Rc1 {[%emt 0:00:30]} Re2 {[%emt 0:00:30]} 22. Kf1 {[%emt 0:00:30]} Rxc2 {[%emt 0:00:30]} 23. Rxc2 {[%emt 0:00:30]} Nxc2 {[%emt 0:00:30]} 24. a3 {[%emt 0:00:30]} Nd4 {[%emt 0:00:30]} 25. Ke1 {[%emt 0:00:30]} Kf8 {[%emt 0:00:30]} 26. Bd1 {[%emt 0:00:30]} Ke7 {[%emt 0:00:30]} 27. Kd2 {[%emt 0:00:30]} Kd6 {[%emt 0:00:30]} 28. Kd3 {[%emt 0:00:30]} Ne6 {[%emt 0:00:30]} 29. Bg4 {[%emt 0:00:30]} c5 {[%emt 0:00:30]} 30. Bf3 {[%emt 0:00:30]} c4+ {[%emt 0:00:30]} 31. Kc3 {[%emt 0:00:30]} Kc5 {[%emt 0:00:30]} 32. Bg4 {[%emt 0:00:30]} Nd4 {[%emt 0:00:30]} 33. Bd1 {[%emt 0:00:30]} f6 {[%emt 0:00:30]} 34. Bh5 {[%emt 0:00:30]} Nf5 {[%emt 0:28:04]} 35. b4+ {[%emt 0:38:03]} cxb3 {[%emt 0:02:03]} 36. Kxb3 {[%emt 0:00:17]} Nd6 {[%emt 0:00:19]} 37. g4 {[%emt 0:00:30]} Ne4 {[%emt 0:08:35]} 38. f3 {[%emt 0:04:00]} Nd2+ {[%emt 0:00:18]} 39. Kc3 {[%emt 0:00:44]} Nc4 {[%emt 0:00:07]} 40. a4 {[%emt 0:01:04]} d4+ {[%emt 0:03:49]} 41. Kb3 {[%emt 0:32:02]} Ne3 {[%emt 0:30:26]} 42. g3 {[%emt 0:01:13]} Nf1 {[%emt 0:00:07]} 43. Kc2 {[%emt 0:00:25]} Nxg3 {[%emt 0:00:08]} 44. Be8 {[%emt 0:00:24]} Ne2 {[%emt 0:00:00]} 45. Kd3 {[%emt 0:00:00]} Nc1+ {[%emt 0:00:00]} 46. Kc2 {[%emt 0:00:00]} Na2 {[%emt 0:00:00]} 47. Kb3 {[%emt 0:00:00]} Nb4 {[%emt 0:00:00]} 48. Bg6 {[%emt 0:00:00]} Nc6 {[%emt 0:00:00]} 49. Bf5 {[%emt 0:00:00]} Ne5 {[%emt 0:00:00]} 50. Be4 {[%emt 0:00:00]} Nf7 {[%emt 0:00:00]} 51. Bb7 {[%emt 0:00:00]} Nd6 {[%emt 0:00:00]} 52. Ba6 {[%emt 0:00:00]} f5 {[%emt 0:00:00]} 53. Bd3 {[%emt 0:00:00]} fxg4 {[%emt 0:00:00]} 54. fxg4 {[%emt 0:00:00]} Nf7 {[%emt 0:00:00]} 55. Bf5 {[%emt 0:00:00]} Ne5 {[%emt 0:00:00]} 56. Be6 {[%emt 0:00:00]} g6 {[%emt 0:00:00]} 57. Bc8 {[%emt 0:00:00]} h5 {[%emt 0:00:00]} 58. gxh5 {[%emt 0:00:00]} gxh5 {[%emt 0:00:00]} 59. Bf5 {[%emt 0:00:00]} Ng4 {[%emt 0:00:00]} 0-1

[Event "Fredericia WIM 2019"]
[Site "Fredericia"]
[Date "2019.05.31"]
[Round "5.6"]
[White "Kanakova, Natalie"]
[Black "Sahl, Sheila Barth"]
[Result "1-0"]
[ECO "A36"]
[WhiteElo "2205"]
[BlackElo "2127"]
[Annotator "ChessBase"]
[PlyCount "95"]
[EventDate "2019.05.29"]
[EventType "tourn"]
[EventCountry "DEN"]
[SourceTitle "playchess.com"]
[Source "ChessBase"]
[SourceQuality "1"]
[TimeControl "40/5400+30:1800+30"]

1. c4 {[%emt 0:00:00]} c5 {[%emt 0:00:00]} 2. Nc3 {[%emt 0:00:11]} Nc6 {[%emt 0:00:27]} 3. g3 {[%emt 0:00:56]} Nf6 {[%emt 0:01:00]} 4. Bg2 {[%emt 0:00:28]} e5 {[%emt 0:01:27]} 5. Nf3 {[%emt 0:04:16]} Be7 {[%emt 0:02:54]} 6. O-O {[%emt 0:01:18]} O-O {[%emt 0:00:30]} 7. Ne1 {[%emt 0:02:50]} Rb8 {[%emt 0:04:25]} 8. Nc2 {[%emt 0:02:18]} Nd4 {[%emt 0:01:02]} 9. Ne3 {[%emt 0:08:06]} b5 {[%emt 0:01:43]} 10. d3 {[%emt 0:06:03]} h6 {[%emt 0:12:57]} 11. b3 {[%emt 0:03:01]} d6 {[%emt 0:04:29]} 12. Bb2 {[%emt 0:04:36]} Be6 {[%emt 0:02:50]} 13. Qd2 {[%emt 0:05:57]} Qd7 {[%emt 0:01:20]} 14. Ned5 {[%emt 0:05:09]} Nxd5 {[%emt 0:07:11]} 15. Nxd5 {[%emt 0:00:09]} Bd8 {[%emt 0:00:18]} 16. e3 {[%emt 0:04:57]} Nc6 {[%emt 0:01:13]} 17. f4 {[%emt 0:02:41]} Bh3 {[%emt 0:07:51]} 18. Rf2 {[%emt 0:10:41]} Bxg2 {[%emt 0:08:28]} 19. Rxg2 {[%emt 0:00:05]} Re8 {[%emt 0:00:47]} 20. Rf1 {[%emt 0:01:31]} Ba5 {[%emt 0:08:21]} 21. Qe2 {[%emt 0:03:39]} Nb4 {[%emt 0:02:13]} 22. Nc3 {[%emt 0:01:36]} a6 {[%emt 0:12:01]} 23. Ba1 {[%emt 0:03:06]} f5 {[%emt 0:03:10]} 24. g4 {[%emt 0:07:27]} Rf8 {[%emt 0:00:52]} 25. g5 {[%emt 0:03:29]} Qe6 {[%emt 0:01:13]} 26. a3 {[%emt 0:00:44]} Nc6 {[%emt 0:00:35]} 27. Nd5 {[%emt 0:00:29]} hxg5 {[%emt 0:02:32]} 28. Rxg5 {[%emt 0:00:21]} Bd8 {[%emt 0:01:15]} 29. Rg3 {[%emt 0:03:29]} bxc4 {[%emt 0:00:18]} 30. bxc4 {[%emt 0:00:09]} Ne7 {[%emt 0:06:37]} 31. Qg2 {[%emt 0:00:41]} Rf7 {[%emt 0:00:22]} 32. Kh1 {[%emt 0:02:25]} Nxd5 {[%emt 0:03:08]} 33. cxd5 {[%emt 0:00:03]} Qe8 {[%emt 0:00:06]} 34. Rg1 {[%emt 0:04:19]} Bf6 {[%emt 0:00:07]} 35. Rg6 {[%emt 0:00:16]} Kf8 {[%emt 0:02:47]} 36. Qh3 {[%emt 0:01:11]} Rb3 {[%emt 0:00:06]} 37. Qxf5 {[%emt 0:01:23]} Rxa3 {[%emt 0:00:02]} 38. Qh5 {[%emt 0:04:24]} Rb3 {[%emt 0:01:14]} 39. Qh7 {[%emt 0:00:25]} Qb5 {[%emt 0:00:25]} 40. fxe5 {[%emt 0:01:40]} dxe5 {[%emt 0:00:59]} 41. Bxe5 {[%emt 0:08:55]} Qd7 {[%emt 0:00:20]} 42. d6 {[%emt 0:01:26]} Qb7+ {[%emt 0:01:47]} 43. e4 {[%emt 0:00:06]} Ke8 {[%emt 0:00:51]} 44. Qg8+ {[%emt 0:00:51]} Rf8 {[%emt 0:00:07]} 45. Qe6+ {[%emt 0:00:08]} Kd8 {[%emt 0:00:08]} 46. Bxf6+ {[%emt 0:00:15]} gxf6 {[%emt 0:01:32]} 47. Rg8 {[%emt 0:00:27]} Qc8 {[%emt 0:01:00]} 48. Rxf8# 1-0

[Event "Fredericia WIM 2019"]
[Site "Fredericia"]
[Date "2019.05.31"]
[Round "5.7"]
[White "Nilssen, Ellen Fredericia"]
[Black "Sucikova, Svetlana"]
[Result "1/2-1/2"]
[ECO "A40"]
[WhiteElo "2129"]
[BlackElo "2110"]
[Annotator "ChessBase"]
[PlyCount "66"]
[EventDate "2019.05.29"]
[EventType "tourn"]
[EventCountry "DEN"]
[SourceTitle "playchess.com"]
[Source "ChessBase"]
[SourceQuality "1"]
[TimeControl "40/5400+30:1800+30"]

1. d4 {[%emt 0:00:00]} g6 {[%emt 0:00:00]} 2. c4 {[%emt 0:00:34]} Bg7 {[%emt 0:00:09]} 3. e4 {[%emt 0:02:35]} d6 {[%emt 0:01:37]} 4. Be2 {[%emt 0:01:07]} Nd7 {[%emt 0:02:21]} 5. Nc3 {[%emt 0:04:22]} e6 {[%emt 0:03:51]} 6. Nf3 {[%emt 0:02:56]} a6 {[%emt 0:03:20]} 7. Be3 {[%emt 0:02:09]} Ne7 {[%emt 0:03:56]} 8. Qd2 {[%emt 0:00:29]} h6 {[%emt 0:00:09]} 9. O-O {[%emt 0:06:31]} g5 {[%emt 0:03:45]} 10. Ne1 {[%emt 0:03:45]} Ng6 {[%emt 0:03:12]} 11. Bh5 {[%emt 0:05:38]} Nf6 {[%emt 0:04:39]} 12. Bxg6 {[%emt 0:02:36]} fxg6 {[%emt 0:00:08]} 13. h3 {[%emt 0:13:37]} O-O {[%emt 0:04:56]} 14. Nd3 {[%emt 0:04:34]} Kh7 {[%emt 0:01:58]} 15. f3 {[%emt 0:06:11]} Bd7 {[%emt 0:05:15]} 16. c5 {[%emt 0:02:46]} Qe7 {[%emt 0:04:08]} 17. b4 {[%emt 0:03:11]} Bc6 {[%emt 0:10:45]} 18. a4 {[%emt 0:03:47]} Rfd8 {[%emt 0:02:35]} 19. cxd6 {[%emt 0:01:52]} cxd6 {[%emt 0:00:26]} 20. b5 {[%emt 0:00:16]} Bd7 {[%emt 0:02:19]} 21. bxa6 {[%emt 0:04:51]} bxa6 {[%emt 0:01:45]} 22. a5 {[%emt 0:00:02]} Rdb8 {[%emt 0:00:25]} 23. Rab1 {[%emt 0:03:45]} Qd8 {[%emt 0:02:01]} 24. Qa2 {[%emt 0:00:30]} Ng8 {[%emt 0:00:42]} 25. Qa3 {[%emt 0:09:26]} Be8 {[%emt 0:04:56]} 26. d5 {[%emt 0:01:36]} Qf6 {[%emt 0:05:44]} 27. Ne2 {[%emt 0:04:29]} exd5 {[%emt 0:03:47]} 28. exd5 {[%emt 0:02:26]} Qe7 {[%emt 0:00:30]} 29. Nf2 {[%emt 0:00:46]} Bb5 {[%emt 0:00:35]} 30. Rfe1 {[%emt 0:01:01]} Bxe2 {[%emt 0:00:53]} 31. Rxb8 {[%emt 0:00:02]} Rxb8 {[%emt 0:00:10]} 32. Rxe2 {[%emt 0:00:11]} Rb1+ {[%emt 0:00:06]} 33. Kh2 {[%emt 0:00:04]} Qe5+ {[%emt 0:03:47]} 1/2-1/2

[Event "Fredericia WIM 2019"]
[Site "Fredericia"]
[Date "2019.05.31"]
[Round "5.8"]
[White "Kubicka, Anna"]
[Black "Kakulidis, Ellen"]
[Result "1/2-1/2"]
[ECO "D31"]
[WhiteElo "2142"]
[BlackElo "2014"]
[Annotator "ChessBase"]
[PlyCount "43"]
[EventDate "2019.05.29"]
[EventType "tourn"]
[EventCountry "DEN"]
[SourceTitle "playchess.com"]
[Source "ChessBase"]
[SourceQuality "1"]
[TimeControl "40/5400+30:1800+30"]

1. d4 {[%emt 0:00:00]} d5 {[%emt 0:00:00]} 2. c4 {[%emt 0:00:00]} e6 {[%emt 0:00:00]} 3. Nc3 {[%emt 0:00:00]} Be7 {[%emt 0:00:00]} 4. Qc2 {[%emt 0:00:16]} c6 {[%emt 0:00:36]} 5. cxd5 {[%emt 0:04:13]} exd5 {[%emt 0:00:10]} 6. Nf3 {[%emt 0:01:40]} Nf6 {[%emt 0:02:42]} 7. Bg5 {[%emt 0:00:37]} g6 {[%emt 0:04:38]} 8. e3 {[%emt 0:06:33]} Bf5 {[%emt 0:01:12]} 9. Bd3 {[%emt 0:00:08]} Bxd3 {[%emt 0:00:08]} 10. Qxd3 {[%emt 0:00:02]} O-O {[%emt 0:00:34]} 11. h4 {[%emt 0:04:50]} Nbd7 {[%emt 0:09:12]} 12. O-O-O {[%emt 0:08:47]} b5 {[%emt 0:03:34]} 13. h5 {[%emt 0:15:22]} Ne4 {[%emt 0:06:15]} 14. Bxe7 {[%emt 0:04:43]} Qxe7 {[%emt 0:00:10]} 15. Qc2 {[%emt 0:00:32]} Rac8 {[%emt 0:02:19]} 16. Kb1 {[%emt 0:00:52]} Nd6 {[%emt 0:07:31]} 17. hxg6 {[%emt 0:03:07]} fxg6 {[%emt 0:00:52]} 18. Ne2 {[%emt 0:03:13]} Ne4 {[%emt 0:07:10]} 19. Nc3 {[%emt 0:06:28]} Nd6 {[%emt 0:00:23]} 20. Ne2 {[%emt 0:01:07]} Ne4 {[%emt 0:00:02]} 21. Nc3 {[%emt 0:00:10]} Nd6 {[%emt 0:00:40]} 22. Ne2 {[%emt 0:00:58]} 1/2-1/2

[Event "Fredericia WIM 2019"]
[Site "Fredericia"]
[Date "2019.05.31"]
[Round "5.9"]
[White "Guindy, Esmat Susanne"]
[Black "Mayrhuber, Nikola"]
[Result "1/2-1/2"]
[ECO "A14"]
[WhiteElo "2156"]
[BlackElo "1985"]
[Annotator "ChessBase"]
[PlyCount "106"]
[EventDate "2019.05.29"]
[EventType "tourn"]
[EventCountry "DEN"]
[SourceTitle "playchess.com"]
[Source "ChessBase"]
[SourceQuality "1"]
[TimeControl "40/5400+30:1800+30"]

1. c4 {[%emt 0:04:25]} e6 {[%emt 0:00:00]} 2. g3 {[%emt 0:01:16]} d5 {[%emt 0:00:00]} 3. Bg2 {[%emt 0:04:01]} Nf6 {[%emt 0:01:00]} 4. Nf3 {[%emt 0:02:04]} Be7 {[%emt 0:00:37]} 5. O-O {[%emt 0:01:32]} O-O {[%emt 0:00:06]} 6. e3 {[%emt 0:05:45]} b6 {[%emt 0:00:32]} 7. cxd5 {[%emt 0:01:18]} Nxd5 {[%emt 0:00:31]} 8. Nc3 {[%emt 0:04:08]} Bb7 {[%emt 0:06:35]} 9. d4 {[%emt 0:02:06]} Nxc3 {[%emt 0:11:01]} 10. bxc3 {[%emt 0:00:07]} c5 {[%emt 0:00:13]} 11. Re1 {[%emt 0:05:13]} Be4 {[%emt 0:02:51]} 12. a4 {[%emt 0:02:17]} Nc6 {[%emt 0:01:29]} 13. Ba3 {[%emt 0:07:05]} Na5 {[%emt 0:08:44]} 14. Nd2 {[%emt 0:01:47]} Bxg2 {[%emt 0:01:10]} 15. Kxg2 {[%emt 0:00:05]} Rc8 {[%emt 0:01:41]} 16. e4 {[%emt 0:10:59]} cxd4 {[%emt 0:04:54]} 17. Bxe7 {[%emt 0:00:51]} Qxe7 {[%emt 0:00:05]} 18. cxd4 {[%emt 0:00:08]} Qd7 {[%emt 0:00:13]} 19. Nf3 {[%emt 0:00:45]} Rfd8 {[%emt 0:00:24]} 20. Ra2 {[%emt 0:06:25]} h6 {[%emt 0:09:13]} 21. Ree2 {[%emt 0:04:04]} Rc3 {[%emt 0:05:52]} 22. Ne5 {[%emt 0:09:55]} Qc7 {[%emt 0:04:14]} 23. Nf3 {[%emt 0:09:56]} Qc4 {[%emt 0:11:46]} 24. Ne5 {[%emt 0:09:56]} Qb4 {[%emt 0:06:15]} 25. Nf3 {[%emt 0:00:30]} Rd6 {[%emt 0:06:27]} 26. Rab2 {[%emt 0:03:52]} Qa3 {[%emt 0:03:20]} 27. Ra2 {[%emt 0:00:25]} Qb4 {[%emt 0:00:03]} 28. Rab2 {[%emt 0:00:12]} Qc4 {[%emt 0:04:22]} 29. Ne5 {[%emt 0:00:20]} Qc7 {[%emt 0:00:51]} 30. Rec2 {[%emt 0:00:45]} Rxd4 {[%emt 0:03:04]} 31. Qxd4 {[%emt 0:02:00]} Rxc2 {[%emt 0:00:05]} 32. Rxc2 {[%emt 0:00:28]} Qxc2 {[%emt 0:00:04]} 33. Qd8+ {[%emt 0:01:08]} Kh7 {[%emt 0:00:04]} 34. Qd4 {[%emt 0:00:10]} Nc6 {[%emt 0:01:44]} 35. Nxc6 {[%emt 0:00:09]} Qxc6 {[%emt 0:00:03]} 36. f3 {[%emt 0:00:07]} a6 {[%emt 0:03:11]} 37. e5 {[%emt 0:00:33]} Qc2+ {[%emt 0:00:39]} 38. Kf1 {[%emt 0:01:18]} b5 {[%emt 0:00:35]} 39. axb5 {[%emt 0:00:08]} axb5 {[%emt 0:00:04]} 40. h4 {[%emt 0:01:08]} Qb1+ {[%emt 0:04:02]} 41. Ke2 {[%emt 0:30:26]} b4 {[%emt 0:31:09]} 42. h5 {[%emt 0:00:00]} Qa2+ {[%emt 0:00:00]} 43. Ke3 {[%emt 0:00:00]} Qa5 {[%emt 0:00:00]} 44. f4 {[%emt 0:00:00]} Kg8 {[%emt 0:00:00]} 45. Qd6 {[%emt 0:00:00]} Qa7+ {[%emt 0:00:00]} 46. Ke2 {[%emt 0:00:00]} Qa2+ {[%emt 0:00:00]} 47. Ke3 {[%emt 0:00:00]} Qb3+ {[%emt 0:00:00]} 48. Kf2 {[%emt 0:00:00]} Qc2+ {[%emt 0:00:00]} 49. Ke3 {[%emt 0:00:00]} Qc1+ {[%emt 0:00:00]} 50. Ke2 {[%emt 0:00:00]} Qb2+ {[%emt 0:00:00]} 51. Qd2 {[%emt 0:00:43]} Qa3 {[%emt 0:05:12]} 52. Qd8+ {[%emt 0:00:10]} Kh7 {[%emt 0:00:06]} 53. Qd3+ {[%emt 0:00:07]} Kg8 {[%emt 0:00:32]} 1/2-1/2

[Event "Fredericia WIM 2019"]
[Site "Fredericia"]
[Date "2019.05.31"]
[Round "5.10"]
[White "Stolberg-Rohr, Thomine"]
[Black "Keetman, Maaike"]
[Result "0-1"]
[ECO "C15"]
[WhiteElo "2025"]
[BlackElo "2146"]
[Annotator "ChessBase"]
[PlyCount "74"]
[EventDate "2019.05.29"]
[EventType "tourn"]
[EventCountry "DEN"]
[SourceTitle "playchess.com"]
[Source "ChessBase"]
[SourceQuality "1"]
[TimeControl "40/5400+30:1800+30"]

1. e4 {[%emt 0:00:00]} e6 {[%emt 0:00:00]} 2. d4 {[%emt 0:00:00]} d5 {[%emt 0:00:00]} 3. Nc3 {[%emt 0:00:17]} Bb4 {[%emt 0:00:00]} 4. exd5 {[%emt 0:00:19]} exd5 {[%emt 0:00:08]} 5. Bd3 {[%emt 0:00:08]} Nf6 {[%emt 0:01:28]} 6. Nge2 {[%emt 0:01:19]} O-O {[%emt 0:00:52]} 7. O-O {[%emt 0:03:53]} Re8 {[%emt 0:02:43]} 8. Bg5 {[%emt 0:00:56]} Be7 {[%emt 0:01:55]} 9. Ng3 {[%emt 0:01:24]} h6 {[%emt 0:07:16]} 10. Bf4 {[%emt 0:02:07]} c6 {[%emt 0:09:49]} 11. Qd2 {[%emt 0:06:28]} Be6 {[%emt 0:05:53]} 12. Nd1 {[%emt 0:10:24]} Bf8 {[%emt 0:09:47]} 13. Ne3 {[%emt 0:02:13]} g6 {[%emt 0:03:53]} 14. Be5 c5 {[%emt 0:00:30]} 15. dxc5 Bxc5 {[%emt 0:00:30]} 16. Bb5 Nc6 {[%emt 0:00:30]} 17. Bxf6 Qxf6 {[%emt 0:00:30]} 18. Nxd5 Bxd5 {[%emt 0:00:30]} 19. Qxd5 Re5 {[%emt 0:00:30]} 20. Qc4 Nd4 {[%emt 0:00:30]} 21. Ne4 Qf4 {[%emt 0:00:30]} 22. Ng3 a6 {[%emt 0:00:30]} 23. Qa4 Rd8 {[%emt 0:00:30]} 24. Qa5 b6 {[%emt 0:00:30]} 25. Qxa6 Nxb5 {[%emt 0:00:30]} 26. Qxb5 Bxf2+ {[%emt 0:00:30]} 27. Rxf2 Qxf2+ {[%emt 0:00:30]} 28. Kxf2 Rxb5 {[%emt 0:00:30]} 29. a3 Rd2+ {[%emt 0:00:30]} 30. Kf3 Rxc2 {[%emt 0:00:30]} 31. Ne4 Rf5+ {[%emt 0:00:30]} 32. Ke3 Rxb2 {[%emt 0:00:30]} 33. Nd6 Rff2 {[%emt 0:00:30]} 34. a4 Rxg2 {[%emt 0:00:30]} 35. Rf1 Rb3+ {[%emt 0:00:30]} 36. Ke4 Re2+ {[%emt 0:00:30]} 37. Kd5 Rd3+ {[%emt 0:00:30]} 0-1